[Event "FIDE Women's Grand Swiss 2023"]
[Site "Villa Marina, Douglas, Isle of Man, Isle Of Man"]
[Date "2023.11.03"]
[Round "9.15"]
[White "Injac, Teodora"]
[Black "Gunina, Valentina"]
[Result "0-1"]
[TimeControl "40/90 + 30 + 30s/move"]
[WhiteFideId "932400"]
[BlackFideId "4167570"]
[WhiteElo "2426"]
[BlackElo "2439"]

1. Nf3 {[%clk 01:30:46]} {[%emt 00:00:13]} d5 {[%clk 01:30:53]} {[%emt
00:00:06]} 2. g3 {[%clk 01:31:00]} {[%emt 00:00:17]} c6 {[%clk 01:31:17]}
{[%emt 00:00:06]} 3. Bg2 {[%clk 01:31:07]} {[%emt 00:00:23]} Bg4 {[%clk
01:31:40]} {[%emt 00:00:07]} 4. h3 {[%clk 01:30:24]} {[%emt 00:01:14]} Bxf3
{[%clk 01:32:04]} {[%emt 00:00:07]} 5. Bxf3 {[%clk 01:30:50]} {[%emt 00:00:04]}
e5 {[%clk 01:31:38]} {[%emt 00:00:55]} 6. d3 {[%clk 01:31:06]} {[%emt
00:00:14]} Nf6 {[%clk 01:30:44]} {[%emt 00:01:24]} 7. O-O {[%clk 01:30:13]}
{[%emt 00:01:24]} Bc5 {[%clk 01:30:00]} {[%emt 00:01:12]} 8. e4 {[%clk
01:29:02]} {[%emt 00:01:42]} O-O {[%clk 01:29:06]} {[%emt 00:01:25]} 9. a4
{[%clk 01:28:48]} {[%emt 00:00:44]} h6 {[%clk 01:28:20]} {[%emt 00:01:16]} 10.
a5 {[%clk 01:26:30]} {[%emt 00:02:48]} Na6 {[%clk 01:23:49]} {[%emt 00:05:00]}
11. c3 {[%clk 01:22:49]} {[%emt 00:04:12]} Bd6 {[%clk 01:21:04]} {[%emt
00:03:13]} 12. Qc2 {[%clk 01:10:36]} {[%emt 00:12:44]} Bc7 {[%clk 01:19:43]}
{[%emt 00:01:51]} 13. b4 {[%clk 01:09:49]} {[%emt 00:01:18]} Qd7 {[%clk
01:19:26]} {[%emt 00:00:46]} 14. Kg2 {[%clk 01:06:44]} {[%emt 00:03:35]} Rfd8
{[%clk 01:19:46]} {[%emt 00:00:10]} 15. Rd1 {[%clk 00:53:09]} {[%emt 00:14:06]}
d4 {[%clk 01:16:59]} {[%emt 00:03:16]} 16. Bb2 {[%clk 00:49:39]} {[%emt
00:03:59]} Qe7 {[%clk 01:15:33]} {[%emt 00:01:56]} 17. Qb3 {[%clk 00:35:39]}
{[%emt 00:14:31]} dxc3 {[%clk 01:15:17]} {[%emt 00:00:46]} 18. Bxc3 {[%clk
00:36:03]} {[%emt 00:00:07]} Bd6 {[%clk 01:15:40]} {[%emt 00:00:06]} 19. Ra4
{[%clk 00:34:08]} {[%emt 00:02:26]} Nc7 {[%clk 01:12:34]} {[%emt 00:03:35]} 20.
Na3 {[%clk 00:32:22]} {[%emt 00:02:17]} a6 {[%clk 01:12:57]} {[%emt 00:00:07]}
21. Nc2 {[%clk 00:31:23]} {[%emt 00:01:28]} Nb5 {[%clk 01:13:02]} {[%emt
00:00:24]} 22. Bb2 {[%clk 00:29:04]} {[%emt 00:02:51]} Rd7 {[%clk 01:09:39]}
{[%emt 00:03:52]} 23. Ne3 {[%clk 00:22:43]} {[%emt 00:06:53]} g6 {[%clk
01:10:02]} {[%emt 00:00:07]} 24. Nc4 {[%clk 00:21:21]} {[%emt 00:01:52]} Bc7
{[%clk 01:10:19]} {[%emt 00:00:11]} 25. Na3 {[%clk 00:15:49]} {[%emt 00:06:03]}
Nd4 {[%clk 01:09:55]} {[%emt 00:00:53]} 26. Bxd4 {[%clk 00:15:25]} {[%emt
00:00:55]} Rxd4 {[%clk 01:10:20]} {[%emt 00:00:05]} 27. Nc2 {[%clk 00:15:51]}
{[%emt 00:00:05]} Rd7 {[%clk 01:10:27]} {[%emt 00:00:22]} 28. Raa1 {[%clk
00:12:54]} {[%emt 00:03:28]} Rad8 {[%clk 01:10:46]} {[%emt 00:00:10]} 29. Qc4
{[%clk 00:12:44]} {[%emt 00:00:41]} Bb8 {[%clk 01:10:30]} {[%emt 00:00:46]} 30.
Be2 {[%clk 00:07:40]} {[%emt 00:05:34]} Kg7 {[%clk 01:09:20]} {[%emt 00:01:39]}
31. Rf1 {[%clk 00:07:53]} {[%emt 00:00:17]} Ne8 {[%clk 01:08:54]} {[%emt
00:00:56]} 32. f4 {[%clk 00:04:54]} {[%emt 00:03:32]} exf4 {[%clk 01:05:59]}
{[%emt 00:03:25]} 33. gxf4 {[%clk 00:05:22]} {[%emt 00:00:02]} Qh4 {[%clk
01:06:20]} {[%emt 00:00:08]} 34. Qc3+ {[%clk 00:05:16]} {[%emt 00:00:38]} Kg8
{[%clk 01:05:38]} {[%emt 00:01:10]} 35. Qe1 {[%clk 00:05:37]} {[%emt 00:00:10]}
Qe7 {[%clk 01:05:36]} {[%emt 00:00:31]} 36. Rd1 {[%clk 00:04:54]} {[%emt
00:01:14]} Ng7 {[%clk 01:05:27]} {[%emt 00:00:38]} 37. Kh1 {[%clk 00:01:43]}
{[%emt 00:03:43]} Ne6 {[%clk 01:05:36]} {[%emt 00:00:20]} 38. f5 {[%clk
00:01:29]} {[%emt 00:00:45]} Nf4 {[%clk 01:05:24]} {[%emt 00:00:40]} 39. fxg6
{[%clk 00:01:28]} {[%emt 00:00:33]} fxg6 {[%clk 01:05:41]} {[%emt 00:00:12]} 40.
Rf3 {[%clk 00:01:11]} {[%emt 00:00:47]} Qg5 {[%clk 01:00:54]} {[%emt 00:05:16]}
41. Bf1 {[%clk 00:24:35]} {[%emt 00:07:08]} Nh5 {[%clk 01:30:55]} {[%emt
00:00:28]} 42. Qd2 {[%clk 00:11:38]} {[%emt 00:13:28]} Ng3+ {[%clk 01:29:38]}
{[%emt 00:01:45]} 43. Kg2 {[%clk 00:11:02]} {[%emt 00:01:07]} Nxe4+ {[%clk
01:29:28]} {[%emt 00:00:40]} 44. Qxg5 {[%clk 00:11:29]} {[%emt 00:00:03]} Nxg5
{[%clk 01:29:52]} {[%emt 00:00:06]} 45. Re3 {[%clk 00:11:23]} {[%emt 00:00:36]}
Nh7 {[%clk 01:29:57]} {[%emt 00:00:25]} 46. d4 {[%clk 00:09:01]} {[%emt
00:02:54]} Nf6 {[%clk 01:29:30]} {[%emt 00:00:56]} 47. Bc4+ {[%clk 00:09:29]}
{[%emt 00:00:03]} Kg7 {[%clk 01:29:52]} {[%emt 00:00:07]} 48. Rde1 {[%clk
00:08:54]} {[%emt 00:01:05]} Bd6 {[%clk 01:30:13]} {[%emt 00:00:09]} 49. Re6
{[%clk 00:05:25]} {[%emt 00:04:00]} Rc7 {[%clk 01:29:25]} {[%emt 00:01:17]} 50.
Bd3 {[%clk 00:05:22]} {[%emt 00:00:33]} Rf7 {[%clk 01:28:20]} {[%emt 00:01:34]}
51. Kh1 {[%clk 00:05:17]} {[%emt 00:00:36]} Bf4 {[%clk 01:27:47]} {[%emt
00:01:00]} 52. h4 {[%clk 00:02:52]} {[%emt 00:02:58]} g5 {[%clk 01:26:54]}
{[%emt 00:01:23]} 53. hxg5 {[%clk 00:03:20]} {[%emt 00:00:03]} hxg5 {[%clk
01:27:19]} {[%emt 00:00:04]} 54. Kg2 {[%clk 00:03:47]} {[%emt 00:00:03]} Rh8
{[%clk 01:25:51]} {[%emt 00:01:57]} 55. Rh1 {[%clk 00:04:00]} {[%emt 00:00:19]}
Rxh1 {[%clk 01:26:14]} {[%emt 00:00:07]} 56. Kxh1 {[%clk 00:04:28]} {[%emt
00:00:01]} Rd7 {[%clk 01:24:56]} {[%emt 00:01:47]} 57. Bf5 {[%clk 00:04:25]}
{[%emt 00:00:35]} Rd5 {[%clk 01:24:21]} {[%emt 00:01:04]} 58. Bd3 {[%clk
00:04:51]} {[%emt 00:00:05]} Kf7 {[%clk 01:24:36]} {[%emt 00:00:14]} 59. Re1
{[%clk 00:04:34]} {[%emt 00:00:48]} Rd8 {[%clk 01:24:57]} {[%emt 00:00:09]} 60.
Kg2 {[%clk 00:02:49]} {[%emt 00:02:16]} g4 {[%clk 01:22:34]} {[%emt 00:02:52]}
61. Bc4+ {[%clk 00:03:01]} {[%emt 00:00:19]} Kf8 {[%clk 01:20:28]} {[%emt
00:02:34]} 62. Rf1 {[%clk 00:02:48]} {[%emt 00:00:44]} Bg5 {[%clk 01:20:27]}
{[%emt 00:00:29]} 63. Rf5 {[%clk 00:02:32]} {[%emt 00:00:48]} Bh4 {[%clk
01:20:40]} {[%emt 00:00:16]} 64. Rf4 {[%clk 00:02:07]} {[%emt 00:00:55]} Re8
{[%clk 01:20:19]} {[%emt 00:00:51]} 65. Rf5 {[%clk 00:02:22]} {[%emt 00:00:16]}
Kg7 {[%clk 01:19:31]} {[%emt 00:01:17]} 66. Re5 {[%clk 00:02:41]} {[%emt
00:00:12]} Rxe5 {[%clk 01:18:42]} {[%emt 00:01:19]} 67. dxe5 {[%clk 00:03:07]}
{[%emt 00:00:02]} Nh5 {[%clk 01:18:45]} {[%emt 00:00:28]} 68. Ne3 {[%clk
00:02:51]} {[%emt 00:00:46]} Nf4+ {[%clk 01:19:07]} {[%emt 00:00:07]} 69. Kf1
{[%clk 00:03:12]} {[%emt 00:00:09]} Be7 {[%clk 01:19:32]} {[%emt 00:00:05]} 70.
Nxg4 {[%clk 00:01:33]} {[%emt 00:02:10]} Bxb4 {[%clk 01:19:55]} {[%emt
00:00:06]} 71. e6 {[%clk 00:00:38]} {[%emt 00:01:25]} Ng6 {[%clk 01:19:34]}
{[%emt 00:00:51]} 72. Kf2 {[%clk 00:00:37]} {[%emt 00:00:31]} Bxa5 {[%clk
01:19:50]} {[%emt 00:00:14]} 73. Ke3 {[%clk 00:01:02]} {[%emt 00:00:05]} b5
{[%clk 01:19:04]} {[%emt 00:01:16]} 74. Bd3 {[%clk 00:01:19]} {[%emt 00:00:13]}
Ne7 {[%clk 01:19:08]} {[%emt 00:00:26]} 75. Be4 {[%clk 00:01:14]} {[%emt
00:00:34]} Bc7 {[%clk 01:17:31]} {[%emt 00:02:07]} 76. Kd4 {[%clk 00:01:16]}
{[%emt 00:00:29]} Bd6 {[%clk 01:17:56]} {[%emt 00:00:05]} 77. Kc3 {[%clk
00:00:34]} {[%emt 00:01:12]} Kf8 {[%clk 01:17:29]} {[%emt 00:00:57]} 78. Kd3
{[%clk 00:00:45]} {[%emt 00:00:19]} Ke8 {[%clk 01:16:57]} {[%emt 00:01:01]} 79.
Nh6 {[%clk 00:00:42]} {[%emt 00:00:34]} Kd8 {[%clk 01:16:31]} {[%emt 00:00:55]}
80. Kc3 {[%clk 00:00:35]} {[%emt 00:00:38]} Kc7 {[%clk 01:16:44]} {[%emt
00:00:17]} 81. Kb3 {[%clk 00:00:54]} {[%emt 00:00:11]} c5 {[%clk 01:16:56]}
{[%emt 00:00:19]} 82. Ng4 {[%clk 00:01:09]} {[%emt 00:00:15]} c4+ {[%clk
01:17:10]} {[%emt 00:00:16]} 83. Kc2 {[%clk 00:01:24]} {[%emt 00:00:14]} Bc5
{[%clk 01:17:13]} {[%emt 00:00:24]} 84. Nf6 {[%clk 00:01:16]} {[%emt 00:00:41]}
Bd4 {[%clk 01:15:36]} {[%emt 00:02:06]} 85. Ne8+ {[%clk 00:00:54]} {[%emt
00:00:53]} Kb6 {[%clk 01:15:32]} {[%emt 00:00:33]} 86. Nd6 {[%clk 00:01:19]}
{[%emt 00:00:06]} Be5 {[%clk 01:15:47]} {[%emt 00:00:14]} 87. Nf7 {[%clk
00:01:18]} {[%emt 00:00:31]} Bc7 {[%clk 01:15:59]} {[%emt 00:00:16]} 88. Bf3
{[%clk 00:01:04]} {[%emt 00:00:46]} Kc5 {[%clk 01:15:57]} {[%emt 00:00:32]} 89.
Ng5 {[%clk 00:00:43]} {[%emt 00:00:51]} b4 {[%clk 01:16:02]} {[%emt 00:00:25]}
90. Ne4+ {[%clk 00:00:56]} {[%emt 00:00:17]} Kd4 {[%clk 01:16:08]} {[%emt
00:00:23]} 91. Nf6 {[%clk 00:01:23]} {[%emt 00:00:04]} b3+ {[%clk 01:16:19]}
{[%emt 00:00:20]} 92. Kb2 {[%clk 00:01:51]} {[%emt 00:00:01]} Be5 {[%clk
01:15:58]} {[%emt 00:00:50]} 93. Nd7 {[%clk 00:02:06]} {[%emt 00:00:16]} Bg7
{[%clk 01:16:23]} {[%emt 00:00:05]} 94. Bb7 {[%clk 00:02:05]} {[%emt 00:00:32]}
a5 {[%clk 01:16:36]} {[%emt 00:00:16]} 95. Ka3 {[%clk 00:02:20]} {[%emt
00:00:15]} Bh6 {[%clk 01:16:56]} {[%emt 00:00:09]} 0-1

[Event "FIDE Women's Grand Swiss 2023"]
[Site "Villa Marina, Douglas, Isle of Man, Isle Of Man"]
[Date "2023.11.03"]
[Round "9.16"]
[White "Kamalidenova, Meruert"]
[Black "Kosteniuk, Alexandra"]
[Result "1-0"]
[TimeControl "40/90 + 30 + 30s/move"]
[WhiteFideId "13712802"]
[BlackFideId "4128125"]
[WhiteElo "2351"]
[BlackElo "2523"]

1. e4 {[%clk 01:30:52]} {[%emt 00:00:06]} e5 {[%clk 01:30:55]} {[%emt
00:00:05]} 2. Nf3 {[%clk 01:31:18]} {[%emt 00:00:04]} Nc6 {[%clk 01:31:20]}
{[%emt 00:00:06]} 3. Bb5 {[%clk 01:31:44]} {[%emt 00:00:04]} a6 {[%clk
01:31:40]} {[%emt 00:00:10]} 4. Ba4 {[%clk 01:32:06]} {[%emt 00:00:08]} Nf6
{[%clk 01:32:06]} {[%emt 00:00:04]} 5. O-O {[%clk 01:32:30]} {[%emt 00:00:06]}
Be7 {[%clk 01:32:15]} {[%emt 00:00:21]} 6. Re1 {[%clk 01:32:38]} {[%emt
00:00:22]} b5 {[%clk 01:32:32]} {[%emt 00:00:14]} 7. Bb3 {[%clk 01:33:03]}
{[%emt 00:00:04]} O-O {[%clk 01:32:52]} {[%emt 00:00:10]} 8. d3 {[%clk
01:33:23]} {[%emt 00:00:10]} d6 {[%clk 01:31:21]} {[%emt 00:02:01]} 9. c3
{[%clk 01:33:38]} {[%emt 00:00:14]} Na5 {[%clk 01:29:24]} {[%emt 00:02:28]} 10.
Bc2 {[%clk 01:34:01]} {[%emt 00:00:07]} c5 {[%clk 01:29:38]} {[%emt 00:00:15]}
11. Nbd2 {[%clk 01:34:18]} {[%emt 00:00:13]} Nc6 {[%clk 01:28:33]} {[%emt
00:01:36]} 12. Nf1 {[%clk 01:34:14]} {[%emt 00:00:34]} Re8 {[%clk 01:28:35]}
{[%emt 00:00:28]} 13. Ng3 {[%clk 01:32:30]} {[%emt 00:02:13]} h6 {[%clk
01:27:56]} {[%emt 00:01:10]} 14. h3 {[%clk 01:32:24]} {[%emt 00:00:35]} Be6
{[%clk 01:27:36]} {[%emt 00:00:51]} 15. d4 {[%clk 01:32:23]} {[%emt 00:00:31]}
cxd4 {[%clk 01:27:49]} {[%emt 00:00:17]} 16. cxd4 {[%clk 01:32:48]} {[%emt
00:00:05]} exd4 {[%clk 01:28:02]} {[%emt 00:00:17]} 17. Ne2 {[%clk 01:32:45]}
{[%emt 00:00:32]} Nb4 {[%clk 01:25:50]} {[%emt 00:02:43]} 18. Nexd4 {[%clk
01:31:55]} {[%emt 00:01:20]} Nxc2 {[%clk 01:25:51]} {[%emt 00:00:28]} 19. Qxc2
{[%clk 01:30:33]} {[%emt 00:01:52]} Bf8 {[%clk 01:15:58]} {[%emt 00:10:23]} 20.
Bf4 {[%clk 01:26:04]} {[%emt 00:04:59]} Rc8 {[%clk 01:15:05]} {[%emt 00:01:24]}
21. Qd2 {[%clk 01:25:45]} {[%emt 00:00:48]} Bd7 {[%clk 01:11:36]} {[%emt
00:03:59]} 22. Qd3 {[%clk 01:24:10]} {[%emt 00:02:05]} Qb6 {[%clk 01:08:15]}
{[%emt 00:03:52]} 23. Rad1 {[%clk 01:20:43]} {[%emt 00:03:55]} d5 {[%clk
01:00:51]} {[%emt 00:07:55]} 24. e5 {[%clk 01:18:55]} {[%emt 00:02:19]} Ne4
{[%clk 01:01:10]} {[%emt 00:00:11]} 25. Be3 {[%clk 01:16:02]} {[%emt 00:03:23]}
Nc5 {[%clk 00:50:33]} {[%emt 00:11:07]} 26. Qe2 {[%clk 01:13:51]} {[%emt
00:02:41]} Qb7 {[%clk 00:48:59]} {[%emt 00:02:05]} 27. Qc2 {[%clk 00:57:11]}
{[%emt 00:17:09]} b4 {[%clk 00:48:15]} {[%emt 00:01:15]} 28. Qb1 {[%clk
00:57:23]} {[%emt 00:00:17]} a5 {[%clk 00:43:48]} {[%emt 00:04:57]} 29. Ne2
{[%clk 00:56:44]} {[%emt 00:01:07]} b3 {[%clk 00:31:35]} {[%emt 00:12:45]} 30.
Nf4 {[%clk 00:54:12]} {[%emt 00:03:02]} bxa2 {[%clk 00:24:36]} {[%emt
00:07:29]} 31. Qxa2 {[%clk 00:53:47]} {[%emt 00:00:55]} Ba4 {[%clk 00:25:00]}
{[%emt 00:00:06]} 32. Rc1 {[%clk 00:51:57]} {[%emt 00:02:20]} Bb3 {[%clk
00:25:20]} {[%emt 00:00:10]} 33. Qxa5 {[%clk 00:51:13]} {[%emt 00:01:13]} Bc4
{[%clk 00:25:27]} {[%emt 00:00:24]} 34. Bxc5 {[%clk 00:46:28]} {[%emt
00:05:15]} Rxc5 {[%clk 00:18:04]} {[%emt 00:07:53]} 35. Qd2 {[%clk 00:44:07]}
{[%emt 00:02:51]} Rb5 {[%clk 00:18:22]} {[%emt 00:00:12]} 36. Nd3 {[%clk
00:43:59]} {[%emt 00:00:37]} Qb6 {[%clk 00:15:55]} {[%emt 00:02:58]} 37. Rc2
{[%clk 00:40:29]} {[%emt 00:04:00]} Ra8 {[%clk 00:09:42]} {[%emt 00:06:43]} 38.
e6 {[%clk 00:35:41]} {[%emt 00:05:19]} fxe6 {[%clk 00:09:57]} {[%emt 00:00:14]}
39. Nfe5 {[%clk 00:35:36]} {[%emt 00:00:35]} Rb3 {[%clk 00:08:21]} {[%emt
00:02:06]} 40. Nxc4 {[%clk 00:30:24]} {[%emt 00:05:41]} dxc4 {[%clk 00:08:45]}
{[%emt 00:00:06]} 41. Rxc4 {[%clk 00:28:49]} {[%emt 00:02:06]} Qd8 {[%clk
00:03:17]} {[%emt 00:05:58]} 42. Rd1 {[%clk 00:28:14]} {[%emt 00:01:04]} Rab8
{[%clk 00:03:36]} {[%emt 00:00:12]} 43. Qe2 {[%clk 00:23:29]} {[%emt 00:05:15]}
Qe8 {[%clk 00:29:28]} {[%emt 00:04:38]} 44. Re4 {[%clk 00:52:16]} {[%emt
00:01:43]} R8b6 {[%clk 00:28:43]} {[%emt 00:01:15]} 45. Rd2 {[%clk 00:50:56]}
{[%emt 00:01:50]} Qc8 {[%clk 00:26:52]} {[%emt 00:02:21]} 46. Rc2 {[%clk
00:47:17]} {[%emt 00:04:09]} Qa6 {[%clk 00:26:37]} {[%emt 00:00:45]} 47. Rec4
{[%clk 00:46:47]} {[%emt 00:00:59]} Qb5 {[%clk 00:21:33]} {[%emt 00:05:34]} 48.
h4 {[%clk 00:38:30]} {[%emt 00:08:47]} Qf5 {[%clk 00:15:09]} {[%emt 00:06:55]}
49. Ne5 {[%clk 00:36:48]} {[%emt 00:02:11]} Ra6 {[%clk 00:12:03]} {[%emt
00:03:36]} 50. Nf3 {[%clk 00:34:48]} {[%emt 00:02:30]} Ra1+ {[%clk 00:10:55]}
{[%emt 00:01:38]} 51. Rc1 {[%clk 00:35:02]} {[%emt 00:00:16]} Rxc1+ {[%clk
00:11:03]} {[%emt 00:00:22]} 52. Rxc1 {[%clk 00:35:30]} {[%emt 00:00:02]} Qf6
{[%clk 00:10:24]} {[%emt 00:01:10]} 53. Rc2 {[%clk 00:34:54]} {[%emt 00:01:06]}
Rb4 {[%clk 00:10:45]} {[%emt 00:00:08]} 54. g3 {[%clk 00:32:39]} {[%emt
00:02:45]} Qf5 {[%clk 00:10:49]} {[%emt 00:00:27]} 55. Kg2 {[%clk 00:32:10]}
{[%emt 00:00:58]} e5 {[%clk 00:09:29]} {[%emt 00:01:51]} 56. Rc4 {[%clk
00:28:22]} {[%emt 00:04:18]} e4 {[%clk 00:09:17]} {[%emt 00:00:41]} 57. Nh2
{[%clk 00:27:54]} {[%emt 00:00:59]} Qb5 {[%clk 00:07:41]} {[%emt 00:02:06]} 58.
Rc2 {[%clk 00:27:03]} {[%emt 00:01:21]} Qb7 {[%clk 00:07:01]} {[%emt 00:01:10]}
59. Nf1 {[%clk 00:27:00]} {[%emt 00:00:32]} Be7 {[%clk 00:07:04]} {[%emt
00:00:28]} 60. Ne3 {[%clk 00:26:57]} {[%emt 00:00:33]} Bf6 {[%clk 00:07:29]}
{[%emt 00:00:05]} 61. Qg4 {[%clk 00:25:58]} {[%emt 00:01:29]} Rb5 {[%clk
00:03:45]} {[%emt 00:04:15]} 62. h5 {[%clk 00:23:43]} {[%emt 00:02:44]} Kf7
{[%clk 00:02:57]} {[%emt 00:01:19]} 63. Qg6+ {[%clk 00:23:42]} {[%emt
00:00:30]} Kf8 {[%clk 00:03:24]} {[%emt 00:00:03]} 64. Qh7 {[%clk 00:22:42]}
{[%emt 00:01:30]} Kf7 {[%clk 00:01:36]} {[%emt 00:02:18]} 65. Qg6+ {[%clk
00:21:58]} {[%emt 00:01:14]} Kf8 {[%clk 00:02:05]} {[%emt 00:00:01]} 66. Qg4
{[%clk 00:21:49]} {[%emt 00:00:39]} Kf7 {[%clk 00:02:27]} {[%emt 00:00:08]} 67.
Qf4 {[%clk 00:21:55]} {[%emt 00:00:23]} Re5 {[%clk 00:02:31]} {[%emt 00:00:27]}
68. Nc4 {[%clk 00:21:30]} {[%emt 00:00:55]} Re6 {[%clk 00:01:41]} {[%emt
00:01:20]} 69. Nd6+ {[%clk 00:21:52]} {[%emt 00:00:08]} Rxd6 {[%clk 00:02:09]}
{[%emt 00:00:02]} 70. Qxd6 {[%clk 00:22:15]} {[%emt 00:00:07]} Qb3 {[%clk
00:01:42]} {[%emt 00:00:57]} 71. Qc7+ {[%clk 00:22:09]} {[%emt 00:00:36]} 1-0

[Event "FIDE Women's Grand Swiss 2023"]
[Site "Villa Marina, Douglas, Isle of Man, Isle Of Man"]
[Date "2023.11.03"]
[Round "9.17"]
[White "Beydullayeva, Govhar"]
[Black "Batsiashvili, Nino"]
[Result "1-0"]
[TimeControl "40/90 + 30 + 30s/move"]
[WhiteFideId "13413015"]
[BlackFideId "13602993"]
[WhiteElo "2383"]
[BlackElo "2475"]

1. Nf3 {[%clk 01:30:54]} {[%emt 00:00:06]} Nf6 {[%clk 01:30:49]} {[%emt
00:00:12]} 2. g3 {[%clk 01:31:10]} {[%emt 00:00:14]} d5 {[%clk 01:31:13]}
{[%emt 00:00:06]} 3. Bg2 {[%clk 01:31:35]} {[%emt 00:00:05]} c5 {[%clk
01:31:38]} {[%emt 00:00:04]} 4. O-O {[%clk 01:31:53]} {[%emt 00:00:12]} Nc6
{[%clk 01:32:05]} {[%emt 00:00:02]} 5. d4 {[%clk 01:32:15]} {[%emt 00:00:09]}
cxd4 {[%clk 01:32:31]} {[%emt 00:00:05]} 6. Nxd4 {[%clk 01:32:42]} {[%emt
00:00:03]} e5 {[%clk 01:32:57]} {[%emt 00:00:03]} 7. Nxc6 {[%clk 01:33:03]}
{[%emt 00:00:10]} bxc6 {[%clk 01:33:23]} {[%emt 00:00:04]} 8. c4 {[%clk
01:32:28]} {[%emt 00:01:05]} Be6 {[%clk 01:33:49]} {[%emt 00:00:04]} 9. Nc3
{[%clk 01:31:05]} {[%emt 00:01:53]} Rc8 {[%clk 01:33:57]} {[%emt 00:00:21]} 10.
Qa4 {[%clk 01:30:10]} {[%emt 00:01:26]} Qd7 {[%clk 01:34:17]} {[%emt 00:00:10]}
11. cxd5 {[%clk 01:30:26]} {[%emt 00:00:14]} cxd5 {[%clk 01:34:42]} {[%emt
00:00:05]} 12. Qxd7+ {[%clk 01:30:47]} {[%emt 00:00:10]} Kxd7 {[%clk 01:35:10]}
{[%emt 00:00:01]} 13. Rd1 {[%clk 01:30:08]} {[%emt 00:01:10]} Bc5 {[%clk
01:32:40]} {[%emt 00:02:59]} 14. Na4 {[%clk 01:29:44]} {[%emt 00:00:55]} a6
{[%clk 01:22:07]} {[%emt 00:11:03]} 15. Bg5 {[%clk 01:17:46]} {[%emt 00:12:28]}
Kd6 {[%clk 01:14:46]} {[%emt 00:07:50]} 16. Nxc5 {[%clk 01:11:20]} {[%emt
00:06:56]} Rxc5 {[%clk 01:15:10]} {[%emt 00:00:07]} 17. e4 {[%clk 01:07:15]}
{[%emt 00:04:35]} h6 {[%clk 01:06:46]} {[%emt 00:08:53]} 18. Bd2 {[%clk
00:54:39]} {[%emt 00:13:07]} Rb5 {[%clk 00:56:08]} {[%emt 00:11:08]} 19. exd5
{[%clk 00:47:23]} {[%emt 00:07:45]} Nxd5 {[%clk 00:41:27]} {[%emt 00:15:11]} 20.
Bc3 {[%clk 00:38:48]} {[%emt 00:09:06]} f6 {[%clk 00:31:27]} {[%emt 00:10:30]}
21. a4 {[%clk 00:36:36]} {[%emt 00:02:42]} Rc5 {[%clk 00:30:35]} {[%emt
00:01:22]} 22. Bb4 {[%clk 00:36:44]} {[%emt 00:00:22]} Rhc8 {[%clk 00:31:04]}
23. Rac1 {[%clk 00:35:49]} {[%emt 00:01:25]} e4 {[%clk 00:29:30]} {[%emt
00:02:04]} 24. Bxe4 {[%clk 00:35:00]} {[%emt 00:01:20]} Ke5 {[%clk 00:29:49]}
{[%emt 00:00:11]} 25. Bxc5 {[%clk 00:35:10]} {[%emt 00:00:19]} Kxe4 {[%clk
00:30:04]} {[%emt 00:00:15]} 26. Re1+ {[%clk 00:35:30]} {[%emt 00:00:11]} Kf5
{[%clk 00:30:29]} {[%emt 00:00:05]} 27. g4+ {[%clk 00:35:57]} {[%emt 00:00:03]}
Kxg4 {[%clk 00:30:07]} {[%emt 00:00:51]} 28. Rxe6 {[%clk 00:36:23]} {[%emt
00:00:05]} Nf4 {[%clk 00:30:34]} {[%emt 00:00:02]} 29. Re4 {[%clk 00:36:28]}
{[%emt 00:00:25]} g5 {[%clk 00:30:52]} {[%emt 00:00:12]} 30. Be3 {[%clk
00:34:52]} {[%emt 00:02:06]} Rd8 {[%clk 00:31:09]} {[%emt 00:00:13]} 31. Bxf4
{[%clk 00:34:31]} {[%emt 00:00:51]} gxf4 {[%clk 00:31:28]} {[%emt 00:00:11]} 32.
Kg2 {[%clk 00:33:43]} {[%emt 00:01:18]} 1-0